Workbook

Sheet Tabelle1
A1: W | B1: Z1 | C1: Z2 | D1: L | E1: Steigung | F1: Aufsteck | G1: Stg. Berechnet
A2: 30 | B2: 120 | C2: 20 | D2: 100 | E2: 0.05 | F2: =(A2+B2)-(C2+D2) -> 30 | G2: =(A2/B2)*(C2/D2) -> 0.05
A3: 30 | B3: 75 | C3: 20 | D3: 100 | E3: 0.08 | F3: =(A3+B3)-(C3+D3) -> -15 | G3: =(A3/B3)*(C3/D3) -> 0.08
A4: 30 | B4: 60 | C4: 20 | D4: 100 | E4: 0.1 | F4: -30 | G4: =(A4/B4)*(C4/D4) -> 0.1
A5: 30 | B5: 75 | C5: 40 | D5: 100 | E5: 0.016 | F5: -35 | G5: =(A5/B5)*(C5/D5) -> 0.16
A6: 30 | B6: 60 | C6: 40 | D6: 100 | E6: 0.2 | F6: -50 | G6: 0.2
A7: 35 | B7: 70 | C7: 50 | D7: 100 | E7: 0.25 | F7: -45 | G7: 0.25
A8: 35 | B8: 70 | C8: 60 | D8: 100 | E8: 0.3 | F8: -55 | G8: 0.3
A9: 35 | B9: 60 | C9: 60 | D9: 100 | E9: 0.35 | F9: -65 | G9: 0.35
A10: 35 | B10: 70 | C10: 60 | D10: 75 | E10: 0.4 | F10: -30 | G10: 0.4
A11: 35 | B11: 60 | C11: 60 | D11: 70 | E11: 0.5 | F11: -35 | G11: 0.5
A12: 35 | B12: 70 | C12: 60 | D12: 50 | E12: 0.6 | F12: -5 | G12: 0.6
A13: 35 | B13: 60 | C13: 60 | D13: 50 | E13: 0.7 | F13: -15 | G13: 0.7
A14: 35 | B14: 70 | C14: 60 | D14: 40 | E14: 0.75 | F14: 5 | G14: 0.75
A15: 40 | B15: 60 | C15: 60 | D15: 50 | E15: 0.8 | F15: -10 | G15: 0.8
A16: 60 | B16: 30 | C16: 50 | D16: 100 | E16: 1 | F16: -60 | G16: 1
A17: 50 | B17: 60 | C17: 60 | D17: 40 | E17: 1.25 | F17: 10 | G17: 1.25
A18: 75 | B18: 50 | C18: 60 | D18: 60 | E18: 1.5 | F18: 5 | G18: 1.5
A19: 60 | B19: 60 | C19: 70 | D19: 40 | E19: 1.75 | F19: 10 | G19: 1.75
A20: 60 | B20: 60 | C20: 70 | D20: 35 | E20: 2 | F20: 15 | G20: 2
A21: 75 | B21: 60 | C21: 60 | D21: 30 | E21: 2.5 | F21: 45 | G21: 2.5
A22: 75 | B22: 50 | C22: 60 | D22: 30 | E22: 3 | F22: 35 | G22: 3
A24: W | B24: Z1 | C24: Z2 | D24: L | E24: TPI | H24: TPI Calc
A25: 60 | B25: 65 | C25: 75 | D25: 30 | E25: 11 | G25: =(A25/B25)*(C25/D25) -> 2.307692308 | H25: =25.4/G25 -> 11.00666667
A26: 55 | B26: 65 | C26: 75 | D26: 30 | E26: 12 | G26: =(A26/B26)*(C26/D26) -> 2.115384615 | H26: =25.4/G26 -> 12.00727273
A27: 60 | B27: 50 | C27: 65 | D27: 40 | E27: 13 | G27: 1.95 | H27: 13.02564103
A28: 55 | B28: 65 | C28: 75 | D28: 35 | E28: 14 | G28: 1.813186813 | H28: 14.00848485
A29: 55 | B29: 65 | C29: 75 | D29: 40 | E29: 16 | G29: 1.586538462 | H29: 16.00969697
A30: 50 | B30: 65 | C30: 55 | D30: 30 | E30: 18 | G30: 1.41025641 | H30: 18.01090909
A31: 50 | B31: 75 | C31: 60 | D31: 30 | E31: 19 | G31: 1.333333333 | H31: 19.05
A32: 55 | B32: 65 | C32: 60 | D32: 40 | E32: 20 | G32: 1.269230769 | H32: 20.01212121
A33: 60 | B33: 40 | C33: 50 | D33: 65 | E33: 22 | G33: 1.153846154 | H33: 22.01333333
A34: 50 | B34: 65 | C34: 55 | D34: 40 | E34: 24 | G34: 1.057692308 | H34: 24.01454545
A36: W | B36: Z1 | C36: Z2 | D36: L | E36: MOD | H36: Mod Calc
A37: 55 | B37: 75 | C37: 30 | D37: 70 | E37: 0.1 | G37: =(A37/B37)*(C37/D37) -> 0.3142857143 | H37: =G37/PI() -> 0.1000402499
A38: 55 | B38: 50 | C38: 30 | D38: 70 | E38: 0.15 | G38: 0.4714285714 | H38: =G38/PI() -> 0.1500603749
A39: 55 | B39: 50 | C39: 40 | D39: 70 | E39: 0.2 | G39: 0.6285714286 | H39: 0.2000804999
A40: 55 | B40: 60 | C40: 60 | D40: 70 | E40: 0.25 | G40: 0.7857142857 | H40: 0.2501006249
A41: 55 | B41: 50 | C41: 60 | D41: 70 | E41: 0.3 | G41: 0.9428571429 | H41: 0.3001207498
A42: 55 | B42: 75 | C42: 60 | D42: 35 | E42: 0.4 | G42: 1.257142857 | H42: 0.4001609998
A43: 55 | B43: 60 | C43: 60 | D43: 35 | E43: 0.5 | G43: 1.571428571 | H43: 0.5002012497
A44: 55 | B44: 50 | C44: 60 | D44: 35 | E44: 0.6 | G44: 1.885714286 | H44: 0.6002414997
